bitfinex/quotes_ETHUSD_20250724
["timestamp","ask_amount","ask_price","bid_price","bid_amount"]
[1753367460180,0.1368,3662.5,3661.9,0.9328]
[1753367460181,2.73037542,3662.5,3662.4,0.1368]
[1753367460350,0.1368,3662.9,3661.3,0.8233127]
[1753367460685,0.4346,3662.4,3661.5,2.73112112]
[1753367460835,2.73015179,3662.8,3662.5,0.1368]
[1753367461037,0.4346,3663.0,3662.3,4.491]
[1753367461286,2.7301694,3662.8,3662.4,0.1368]
[1753367461574,1.88000001,3663.2,3662.4,4.6318]
[1753367461777,2.73018484,3662.8,3662.6,0.1368]
[1753367461981,2.72993083,3663.1,3662.5,4.494]
[1753367462152,1.88000001,3663.2,3662.8,0.1368]
[1753367462353,1.88000001,3663.2,3663.0,0.1368]
[1753367462565,1.88000001,3663.2,3663.1,4.498]
[1753367462774,4.609922,3663.2,3663.1,0.20323276]
[1753367462989,2.7299282,3663.1,3663.0,4.6368]
[1753367463377,1.88000001,3663.2,3663.0,4.6368]
[1753367464755,1.88000001,3663.2,3663.0,7.83408854]
[1753367464955,1.88000001,3663.2,3663.1,3.1972282]
[1753367465151,1.88000001,3663.2,3663.0,4.6368]
[1753367465392,1.88000001,3663.2,3663.1,2.7299282]
[1753367465662,1.88000001,3663.2,3663.1,3.1972282]
[1753367465860,1.88000001,3663.2,3663.1,3.6524282]
[1753367466065,1.88000001,3663.2,3663.1,4.43482748]
[1753367466297,1.88000001,3663.2,3663.1,8.8985282]
[1753367467108,1.88000001,3663.2,3663.1,9.10614654]
[1753367468188,1.88000001,3663.2,3663.1,4.61514654]
[1753367468350,1.88000001,3663.2,3663.1,9.10414654]
[1753367471061,0.002,3663.6,3663.5,2.72963013]
[1753367471259,0.002,3663.6,3663.5,7.21563013]
[1753367471588,0.002,3663.6,3663.5,8.13813013]
[1753367472465,0.002,3663.6,3663.1,0.96271834]
[1753367472662,0.002,3663.6,3663.2,4.485]
[1753367472967,0.002,3663.6,3663.3,4.487]
[1753367473170,0.002,3663.6,3662.7,0.76]
[1753367473513,0.002,3663.6,3662.8,4.51330151]
[1753367473514,0.7512,3663.4,3662.8,4.51330151]
[1753367473661,0.002,3663.6,3662.8,4.51330151]
[1753367473862,0.002,3663.6,3663.3,2.72972907]
[1753367474179,0.002,3663.6,3663.4,4.487]
[1753367474382,0.002,3663.6,3663.5,7.24392643]
[1753367474568,0.002,3663.6,3663.5,4.41123013]
[1753367474767,0.002,3663.6,3663.5,8.91323013]
[1753367475210,1e-08,3664.1,3663.8,2.72940662]
[1753367475360,1e-08,3664.1,3664.0,2.72925764]
[1753367475790,1e-08,3664.1,3664.0,3.65175764]
[1753367476109,1e-08,3664.1,3664.0,5.03285764]
[1753367476317,0.04,3664.9,3664.8,2.72866186]
[1753367476621,1e-08,3665.2,3665.1,4.10903851]
[1753367476910,1e-08,3665.2,3665.1,8.10132289]
[1753367477211,1e-08,3665.2,3665.1,9.54653851]
[1753367477373,1e-08,3665.2,3665.1,4.48153851]
[1753367477577,1e-08,3665.2,3665.1,9.23484444]
[1753367477795,1e-08,3665.2,3665.1,4.68756006]
[1753367477994,1e-08,3665.2,3665.1,10.03728813]
[1753367478162,1e-08,3665.2,3665.1,10.01000375]
[1753367478361,1e-08,3665.2,3665.1,13.01000375]
[1753367478657,1e-08,3665.2,3665.1,2.21054821]
[1753367478904,1e-08,3665.2,3665.1,0.45744821]
[1753367479090,1e-08,3665.2,3665.1,8.6666711]
[1753367479273,2.3,3665.8,3665.7,2.72799192]
[1753367479486,2.3,3665.8,3665.7,8.27313756]
[1753367479813,2.3,3665.8,3665.7,6.46764564]
[1753367480093,2.3,3665.8,3665.7,9.19663756]
[1753367480264,2.3,3665.8,3665.7,9.19550847]
[1753367480698,2.3,3665.8,3665.7,8.94429192]
[1753367481957,1e-08,3665.9,3665.8,4.1101175]
[1753367482208,1e-08,3665.9,3665.8,8.03179667]
[1753367482363,0.04,3666.9,3666.8,3.55937355]
[1753367482558,0.04,3666.9,3666.8,8.12764528]
[1753367482789,1e-08,3666.9,3666.8,9.54477355]
[1753367482998,0.04,3667.9,3667.8,3.50103001]
[1753367483498,0.04,3667.9,3667.8,8.48223001]
[1753367484009,0.04,3667.9,3667.8,7.27143001]
[1753367484167,0.04,3667.9,3667.8,8.16583001]
[1753367484513,1e-08,3667.9,3667.8,9.70290196]
[1753367484687,1e-08,3667.9,3667.8,9.15790196]
[1753367485007,1e-08,3667.9,3667.8,20.35599196]
[1753367485212,0.00475605,3669.0,3668.8,3.52518687]
[1753367485410,0.00475605,3669.0,3668.8,8.10244373]
[1753367485614,0.00475605,3669.0,3668.8,9.51958687]
[1753367485615,1e-08,3669.0,3668.8,9.51958687]
[1753367485920,1e-08,3669.0,3668.9,8.01524258]
[1753367486102,1e-08,3669.0,3668.9,10.50541258]
[1753367486307,1e-08,3669.0,3668.9,15.79157957]
[1753367486632,1e-08,3669.0,3668.9,14.80209657]
[1753367486979,0.04,3669.9,3669.8,3.48294413]
[1753367487179,0.04,3669.9,3669.8,15.15519357]
[1753367487378,0.04,3669.9,3669.8,16.15734413]
[1753367488222,0.04,3669.9,3669.8,11.61134413]
[1753367488390,0.04,3669.9,3669.8,16.15334413]
[1753367488590,0.04,3669.9,3669.8,11.61134413]
[1753367488827,0.04,3670.9,3670.8,2.7242018]
[1753367488976,0.04,3670.9,3670.8,7.2642018]
[1753367489175,0.04,3670.9,3670.8,2.8602018]
[1753367489376,0.04,3670.9,3670.8,2.7242018]
[1753367489609,0.04,3670.9,3670.8,8.9361018]
[1753367489876,0.04,3670.9,3670.8,0.20329292]
[1753367490195,0.04,3670.9,3670.8,4.559]
[1753367490399,3.20453925,3670.9,3670.8,0.20030753]
[1753367490625,0.4804,3670.9,3670.8,4.556]
[1753367490980,0.04,3670.9,3670.8,4.7594974]
[1753367491180,0.04,3670.9,3670.8,0.2034974]
[1753367491424,0.04,3670.9,3670.1,2.75195283]
[1753367491713,0.04,3670.9,3670.1,0.02724721]
[1753367491877,0.4804,3670.9,3670.2,2.72462488]
[1753367492076,0.4804,3670.9,3670.3,4.555]
[1753367492281,0.4804,3670.9,3670.4,0.02724498]
[1753367492282,0.04,3670.9,3670.4,0.02724498]
[1753367492730,0.04,3670.9,3669.8,7.29771843]
[1753367492931,0.4404,3670.8,3669.9,0.02724869]
[1753367493104,0.811,3670.7,3670.0,4.552]
[1753367493318,0.4404,3670.8,3670.1,0.02724721]
[1753367493513,0.04,3670.9,3670.1,0.02724721]
[1753367493853,0.04,3670.9,3669.9,0.02724869]
[1753367494001,2.7244458,3670.5,3669.8,0.22896787]
[1753367494203,0.4404,3670.4,3669.8,0.02724944]
[1753367494503,0.4404,3670.4,3669.9,4.554]
[1753367494710,0.4404,3670.4,3670.0,0.02724795]
[1753367494919,0.4404,3670.8,3670.0,0.02724795]
[1753367495119,2.72427602,3670.7,3670.0,0.02724795]
[1753367495328,0.4404,3670.8,3670.1,4.551]
[1753367495620,0.4404,3670.8,3670.2,0.02724647]
[1753367495822,3.16460284,3670.8,3670.3,4.549]
[1753367496025,0.04,3670.9,3670.6,2.72434157]
[1753367496241,0.04,3670.9,3670.8,2.7242018]
[1753367496463,0.04,3670.9,3670.7,4.57624276]
[1753367496464,0.04,3670.9,3670.7,7.27326614]
[1753367496612,0.04,3670.9,3670.8,2.7242018]
[1753367496956,0.04,3670.9,3670.8,3.1634018]
[1753367497267,0.04,3670.9,3670.8,7.2742018]
[1753367497606,0.04,3670.9,3670.4,2.72443072]
[1753367497917,0.04,3670.9,3670.6,2.72428768]
[1753367498231,0.04,3670.9,3670.7,2.75149547]
[1753367498410,0.04,3670.9,3670.7,0.02724276]
[1753367498606,0.4404,3670.8,3670.7,0.02724276]
[1753367498808,0.04,3670.9,3670.8,2.7242018]
[1753367499344,0.04,3670.9,3670.8,2.8602018]
[1753367499709,0.04,3670.9,3670.8,4.678]
[1753367499914,0.4804,3670.9,3670.8,4.678]
[1753367500334,0.4804,3670.9,3670.8,0.136]
[1753367500533,0.4804,3670.9,3670.8,4.676]
[1753367501530,0.4804,3670.9,3670.8,7.4002018]
[1753367501531,0.04,3670.9,3670.8,7.4002018]
[1753367502351,0.04,3670.9,3670.8,9.0533018]
[1753367502557,0.04,3670.9,3670.8,4.5133018]
[1753367502760,0.04,3670.9,3670.8,9.0483018]
[1753367503054,0.04,3670.9,3670.8,9.0493018]
[1753367503232,0.04,3670.9,3670.8,7.3972018]
[1753367503441,0.04,3670.9,3670.8,8.2964018]
[1753367503769,12.09000001,3671.4,3671.3,2.72383079]
[1753367504079,12.09000001,3671.4,3671.3,4.11023079]
[1753367504391,0.002,3672.4,3671.8,2.72345988]
[1753367504543,0.002,3672.4,3671.8,7.26245988]
[1753367504750,0.002,3672.4,3671.8,0.136]
[1753367505071,3.16542909,3672.4,3671.8,4.675]
[1753367505243,0.002,3672.4,3671.8,7.46834682]
[1753367505444,0.04,3674.9,3671.9,12.801483]
[1753367505697,0.4404,3674.4,3672.7,2.72272993]
[1753367505986,1.195,3673.6,3671.8,0.20788694]
[1753367506141,0.7924,3673.4,3671.9,4.582]
[1753367506343,3.51489598,3673.1,3671.8,0.20621043]
[1753367506538,0.7651,3671.5,3670.2,0.46]
[1753367506838,0.4404,3671.4,3670.4,2.72449869]
[1753367507042,3.16422948,3671.4,3670.5,7.33766391]
[1753367507237,0.4404,3671.4,3670.4,0.2033481]
[1753367507496,0.4404,3671.3,3670.5,7.3074087]
[1753367507800,0.4404,3671.3,3669.9,0.02724869]
[1753367507801,0.4404,3671.3,3670.6,4.583]
[1753367508156,2.72393023,3671.2,3671.1,0.04]
[1753367508365,3.16433023,3671.2,3671.1,0.04]
[1753367508744,0.7651,3671.5,3671.1,0.04]
[1753367508945,3.16430499,3671.2,3671.1,0.04]
[1753367509150,2.72390499,3671.2,3671.1,0.04]
[1753367509378,3.16430499,3671.2,3671.1,0.04]
[1753367513698,0.8473,3671.2,3670.1,0.04]
[1753367513902,2.72464715,3670.2,3670.1,0.04]
[1753367514122,3.95884715,3670.2,3670.1,0.04]
[1753367514502,2.72494413,3669.8,3669.7,0.20844124]
[1753367514802,2.72538973,3669.2,3668.8,4.563]
[1753367515119,2.72538973,3669.2,3669.1,0.24480159]
[1753367515278,3.18008973,3669.2,3669.1,0.04]
[1753367515479,4.11188973,3669.2,3669.1,0.04]
[1753367515706,4.51878973,3669.2,3668.1,0.04]
[1753367515918,4.51878973,3669.2,3668.1,0.38172173]
[1753367515919,0.136,3668.6,3668.1,0.38172173]
[1753367516234,3.1803269,3668.9,3668.6,0.136]
[1753367516413,0.4547,3668.8,3668.5,0.136]
[1753367516615,3.18048074,3668.7,3668.1,0.24007823]
[1753367516788,0.4547,3668.6,3668.1,0.04]
[1753367516992,2.8621327,3668.2,3668.1,0.04]
[1753367517331,0.5907,3668.2,3668.1,0.04]
[1753367517501,3.3168327,3668.2,3668.1,0.04]
[1753367517698,3.57044199,3668.2,3668.1,0.04]
[1753367517917,3.97734199,3668.2,3668.1,0.04]
[1753367518118,2.72672738,3667.4,3667.1,0.04]
[1753367518284,0.136,3667.3,3667.1,0.04]
[1753367518483,2.72687609,3667.2,3667.1,0.04]
[1753367518686,1.272,3667.2,3667.1,0.04]
[1753367518887,4.40567609,3667.2,3667.1,0.04]
[1753367519152,8.55987609,3667.2,3667.1,0.04]
[1753367519533,8.96667609,3667.2,3667.1,0.04]
[1753367520122,4.25216289,3667.2,3667.1,0.04]
[1753367520322,2.72629837,3668.0,3667.1,0.04]
[1753367520323,0.4547,3668.0,3667.1,0.04]
[1753367520721,3.18100225,3668.0,3667.1,0.04]
[1753367520923,2.72653536,3667.7,3667.1,0.04]
[1753367521258,0.70791962,3667.9,3667.1,0.04]
[1753367521465,0.4547,3667.9,3667.1,0.04]
[1753367521750,0.4547,3667.8,3667.1,0.04]
[1753367521923,3.51167609,3667.2,3667.1,0.04]
[1753367522123,6.2103,3667.2,3666.1,0.04]
[1753367522334,2.72752965,3666.4,3666.1,0.04]
[1753367522647,3.5575257,3666.4,3666.3,0.001]
[1753367522854,4.4190257,3666.4,3666.3,0.001]
[1753367523060,7.4190257,3666.4,3666.3,0.001]
[1753367523369,6.52351987,3666.2,3666.1,0.04]
[1753367523670,1.04817799,3666.2,3666.1,0.04]
[1753367523825,0.25223787,3666.9,3666.1,0.7901]
[1753367524022,0.8161,3667.6,3666.1,0.81737694]
[1753367524223,0.8161,3667.6,3666.2,0.48467619]
[1753367524435,1.2847,3668.3,3666.3,5.0567]
[1753367524660,1.2847,3668.3,3666.4,0.48467471]
[1753367524956,0.4547,3668.2,3667.2,2.72680295]
[1753367525325,0.4547,3668.2,3667.3,2.72679919]
[1753367525550,2.72649598,3667.8,3666.5,2.72733468]
[1753367525750,2.72620702,3668.1,3667.0,2.72696772]
[1753367526063,0.4547,3668.2,3667.2,2.72684299]
[1753367526357,0.4547,3668.2,3666.9,4.577]
[1753367526577,0.4547,3668.2,3667.0,2.72702481]
[1753367526758,0.4547,3668.2,3666.2,0.4574]
[1753367526923,0.4547,3668.2,3666.6,2.72726201]
[1753367526924,2.72651335,3667.7,3666.6,2.72726201]
[1753367527259,0.4547,3667.6,3666.1,0.7901]
[1753367527559,2.72670912,3667.5,3667.1,0.001]
[1753367528058,0.4547,3667.4,3667.1,0.001]
[1753367528262,2.72634868,3668.0,3667.1,0.001]
[1753367528467,0.83,3668.3,3667.1,0.0282695]
[1753367528761,0.83,3668.3,3667.1,4.5982695]
[1753367529058,0.4547,3668.7,3667.4,2.72668962]
[1753367529258,0.4547,3668.7,3667.1,4.571]
[1753367529459,2.72600358,3668.4,3667.4,2.72667072]
[1753367529764,0.7649,3669.0,3668.2,2.72612203]
[1753367529960,0.4547,3669.4,3668.3,0.02726058]
[1753367530261,0.4547,3669.4,3667.6,3.51037868]
[1753367530262,0.136,3669.4,3668.8,0.136]
[1753367530471,2.72568687,3668.8,3668.4,0.136]
[1753367530632,0.176,3668.9,3667.6,0.7838]
[1753367530633,0.4547,3668.7,3668.3,0.136]
[1753367530833,0.7838,3668.5,3667.4,2.72668719]
[1753367531066,0.04,3668.9,3667.5,0.48466653]
[1753367531468,0.04,3668.9,3668.8,2.72568687]
[1753367531991,0.04,3668.9,3668.3,5.0334]
[1753367532283,1e-08,3668.9,3668.8,2.72568687]
[1753367532489,0.04,3669.9,3668.8,2.72568687]
[1753367532490,0.04,3669.9,3669.8,2.72494413]
[1753367532836,0.04,3669.9,3669.8,8.26829357]
[1753367533036,0.04,3669.9,3669.8,8.24104413]
[1753367533283,0.04,3669.9,3669.8,9.02414413]
[1753367534487,0.04,3669.9,3669.8,4.44714413]
[1753367534793,0.04,3669.9,3669.8,8.56374413]
[1753367535078,0.04,3669.9,3669.8,9.02114413]
[1753367535487,0.04,3669.9,3669.8,1.92637363]
[1753367535781,0.04,3669.9,3669.8,3.71221776]
[1753367535943,0.04,3669.9,3669.8,8.28121776]
[1753367536138,0.04,3669.9,3669.8,0.98727363]
[1753367536375,0.04,3669.9,3669.8,8.28121776]
[1753367536605,0.04,3669.9,3669.8,4.77217363]
[1753367536899,0.04,3669.9,3669.8,7.49711776]
[1753367537189,0.04,3669.9,3669.8,0.20417363]
[1753367537390,0.04,3669.9,3669.0,1.3021]
[1753367537677,0.04,3669.9,3669.5,2.72516163]
[1753367537911,0.04,3669.9,3669.0,4.02760174]
[1753367538104,0.04,3669.9,3669.1,4.566]
[1753367538438,0.04,3669.9,3669.2,0.02725389]
[1753367538685,0.04,3669.9,3667.9,0.75153425]
[1753367538839,0.04,3669.9,3668.4,8.3794]
[1753367539041,2.72537374,3669.3,3668.5,7.2888573]
[1753367539249,2.72523477,3669.5,3668.5,4.563]
[1753367539457,0.04,3669.9,3667.1,3.041]
[1753367539458,7.13523399,3668.7,3667.1,0.041]
[1753367539696,2.72652474,3667.7,3667.1,0.041]
[1753367539847,3.53756816,3668.3,3667.1,0.041]
[1753367540048,0.4547,3668.2,3667.2,0.02726876]
[1753367540348,2.72653339,3667.7,3667.1,0.041]
[1753367540570,2.72684743,3667.3,3667.1,0.041]
[1753367540770,2.72687609,3667.2,3667.1,0.041]
[1753367541172,2.72687609,3667.2,3667.1,0.177]
[1753367541352,3.95257609,3667.2,3667.1,0.041]
[1753367541548,4.08857609,3667.2,3667.1,0.041]
[1753367541750,4.08857609,3667.2,3667.1,1e-08]
[1753367541751,3.95257609,3667.2,3667.1,1e-08]
[1753367544302,6.95257609,3667.2,3667.1,1e-08]
[1753367544506,7.90937609,3667.2,3667.1,1e-08]
[1753367544707,7.6122304,3667.2,3667.1,1e-08]
[1753367545005,12.1932436,3667.2,3667.1,1e-08]
[1753367545202,4.2054436,3667.2,3667.1,1e-08]
[1753367545424,3.95257609,3667.2,3667.1,1e-08]
[1753367547681,3.55657108,3666.4,3666.3,0.001]
[1753367548210,4.00117108,3666.4,3666.3,0.001]
[1753367548382,2.72799192,3665.7,3665.1,0.041]
[1753367548709,2.72836407,3665.2,3665.1,0.041]
[1753367549229,3.17296407,3665.2,3665.1,0.041]
[1753367549656,0.4446,3665.2,3665.1,0.041]
[1753367549796,2.72835819,3665.3,3665.1,0.041]
[1753367550518,0.765,3665.6,3665.1,0.041]
[1753367550720,2.72814089,3665.5,3665.1,0.041]
[1753367551098,2.72822362,3665.4,3665.1,0.041]
[1753367551299,0.4446,3665.4,3665.1,0.041]
[1753367551500,2.72836407,3665.2,3665.1,0.041]
[1753367551700,2.86516407,3665.2,3665.1,0.041]
[1753367551934,2.72895972,3664.4,3664.3,0.001]
[1753367552140,3.51925972,3664.4,3664.3,0.001]
[1753367552314,4.10065972,3664.4,3664.3,0.001]
[1753367552748,0.1368,3664.4,3664.3,0.001]
[1753367553053,0.1368,3664.6,3664.3,0.001]
[1753367553435,5.72895972,3664.4,3664.3,0.001]
[1753367553602,0.7641,3664.9,3664.3,0.001]
[1753367553603,2.72874946,3664.7,3664.3,0.001]
[1753367553805,0.7641,3664.9,3664.3,0.001]
[1753367553806,0.9009,3664.9,3664.3,0.001]
[1753367554006,0.7641,3664.9,3664.3,0.001]
[1753367554239,0.1368,3664.6,3664.3,0.001]
[1753367554742,2.72895972,3664.4,3664.3,0.001]
[1753367554908,2.86575972,3664.4,3664.3,0.001]
[1753367555104,0.1368,3664.4,3664.3,0.001]
[1753367556029,3.31035972,3664.4,3664.3,0.001]
[1753367556341,1.3705,3664.4,3664.1,0.04]
[1753367556500,0.1368,3664.2,3664.1,0.04]
[1753367557105,4.576,3665.0,3664.1,0.04]
[1753367557106,0.753,3665.0,3664.1,0.04]
[1753367557431,0.1368,3664.9,3664.4,0.1368]
[1753367558246,2.72875602,3664.7,3664.4,0.1368]
[1753367558433,2.72867217,3664.8,3664.4,0.1368]
[1753367558628,2.86541012,3664.9,3664.4,0.1368]
[1753367558831,0.7814,3665.6,3664.5,3.66728525]
[1753367559046,0.1368,3665.3,3664.8,0.1368]
[1753367559414,2.86510071,3665.3,3664.8,0.1368]
[1753367559927,0.1368,3665.3,3664.8,0.1368]
[1753367560471,0.8106,3666.2,3664.9,0.9384]
[1753367560757,2.72837079,3665.2,3664.4,2.72888718]
[1753367560937,2.72845169,3665.1,3664.8,0.1368]
[1753367561463,2.86510856,3665.3,3664.8,0.1368]
[1753367561464,2.72842297,3665.2,3664.8,0.1368]
[1753367561964,0.1368,3665.3,3664.2,0.808]
[1753367562256,2.72850838,3665.1,3664.7,0.1368]
[1753367562466,0.1368,3665.3,3664.7,0.1368]
[1753367562670,2.72876116,3664.7,3664.3,4.57]
[1753367562982,2.72887389,3664.6,3664.2,0.1368]
[1753367563115,2.72903419,3664.3,3664.2,0.1368]
[1753367563514,2.7289089,3664.5,3664.2,0.1368]
[1753367563713,2.72882001,3664.6,3664.2,0.1368]
[1753367563907,0.1368,3664.7,3664.2,0.1368]
[1753367564259,2.72910867,3664.2,3664.1,0.04]
[1753367564638,3.96190867,3664.2,3664.1,0.04]
[1753367564865,2.72948112,3663.7,3663.6,0.001]
[1753367565028,2.86628112,3663.7,3663.6,0.001]
[1753367565356,5.72955562,3663.6,3662.5,0.1368]
[1753367565566,3.51615367,3663.2,3662.4,0.1368]
[1753367565710,3.51615367,3663.2,3662.1,0.04]
[1753367565711,2.73059909,3662.2,3662.1,0.04]
[1753367565910,0.68392046,3663.8,3662.1,0.04]
[1753367566212,2.72955562,3663.6,3662.2,0.4725]
[1753367566549,2.72955562,3663.6,3662.1,0.04]
[1753367566550,3.0,3663.2,3662.1,0.04]
[1753367567022,0.4446,3663.3,3662.1,0.04]
[1753367567227,2.73050212,3662.4,3662.1,0.04]
[1753367567945,0.4446,3662.4,3662.1,0.04]
[1753367568146,3.0,3663.0,3662.1,0.04]
[1753367568321,2.73058975,3662.3,3662.1,0.04]
[1753367568522,2.73058323,3662.3,3662.1,0.04]
[1753367568722,3.17519909,3662.2,3662.1,0.04]
[1753367568924,1.2187,3662.2,3662.1,0.04]
[1753367569123,0.4446,3662.9,3662.1,0.04]
[1753367569325,7.103,3664.0,3662.1,0.04]
[1753367569326,0.2529322,3663.7,3662.2,13.41230599]
[1753367569552,0.4446,3664.2,3662.3,0.4659]
[1753367569719,0.2529322,3664.6,3663.3,0.7646]
[1753367570046,0.2529322,3664.6,3662.3,1.1457045]
[1753367570047,2.7290619,3664.3,3662.6,0.9384]
[1753367570256,0.2529322,3664.2,3662.6,0.9384]
[1753367570448,2.72955562,3663.6,3662.2,0.7646]
[1753367570611,0.2529322,3663.5,3663.4,2.72970464]
[1753367570814,0.2529322,3664.1,3663.4,6.3232]
[1753367571012,0.2529322,3664.1,3663.4,5.3976]
[1753367571261,0.2529322,3664.0,3663.5,2.72957888]
[1753367571561,0.2529322,3664.0,3663.6,4.632]
[1753367571731,2.72904965,3664.3,3663.6,7.36154083]
[1753367571931,2.72904965,3664.3,3663.6,5.1045]
[1753367572173,2.72920058,3664.1,3663.6,0.4725]
[1753367572315,3.41333421,3663.8,3663.6,4.628]
[1753367572514,0.68392046,3663.8,3663.6,4.628]
[1753367572934,0.68392046,3663.8,3663.7,0.4725]
[1753367573114,1.11272046,3663.8,3663.2,4.627]
[1753367573316,2.72964911,3663.5,3663.2,4.627]
[1753367574018,1.11272046,3663.8,3662.9,0.7663]
[1753367574336,2.72956134,3663.6,3663.0,4.624]
[1753367574649,2.72956134,3663.6,3663.1,4.622]
[1753367574650,2.72977983,3663.3,3663.1,4.622]
[1753367574829,0.25368949,3663.5,3662.6,0.480403]
[1753367575011,2.72948112,3663.7,3662.7,4.622]
[1753367575215,3.0,3663.7,3662.7,4.621]
[1753367575453,2.73021938,3662.8,3662.2,0.4531]
[1753367575655,0.4288,3663.2,3662.1,0.041]
[1753367575832,0.7531,3663.0,3662.2,4.619]
[1753367576035,2.73035257,3662.6,3662.2,4.619]
[1753367576240,2.73039711,3662.5,3662.2,4.619]
[1753367576440,2.73047428,3662.4,3662.2,4.619]
[1753367576676,0.1368,3662.6,3662.1,0.1778]
[1753367576880,0.1368,3662.4,3662.1,0.041]
[1753367577083,2.86739909,3662.2,3662.1,0.041]
[1753367578267,6.29619909,3662.2,3662.1,0.041]
[1753367578435,7.06209909,3662.2,3662.1,0.041]
[1753367579025,7.31633792,3662.2,3662.1,0.041]
[1753367580372,0.39103883,3662.2,3662.1,2.77167365]
[1753367580537,0.25416066,3662.8,3662.1,0.9597]
[1753367580870,2.73052453,3662.3,3662.1,0.041]
[1753367581027,0.25412375,3663.2,3662.1,0.041]
[1753367581028,3.0,3662.4,3662.1,0.041]
[1753367581229,2.73059909,3662.2,3662.1,0.041]
[1753367581829,0.25418836,3662.3,3662.1,0.041]
[1753367581950,2.73036303,3662.6,3662.2,0.8014]
[1753367582158,2.73017823,3662.8,3662.3,4.638]
[1753367582462,2.73037542,3662.5,3662.4,4.637]
[1753367582658,2.73059909,3662.2,3662.1,4.678]
[1753367583078,2.73059909,3662.2,3662.1,0.041]
[1753367583833,2.73000259,3663.1,3662.1,0.041]
[1753367583834,0.4288,3663.0,3662.1,0.041]
[1753367584040,2.73059909,3662.2,3662.1,0.041]
[1753367584762,3.15939909,3662.2,3662.1,0.041]
[1753367584968,5.73059909,3662.2,3662.1,0.041]
[1753367585162,5.98483501,3662.2,3662.1,0.041]
[1753367585874,5.73059909,3662.2,3662.1,0.041]
[1753367586055,5.98474387,3662.2,3662.1,0.041]
[1753367586453,5.9847036,3662.2,3662.1,0.041]
[1753367586657,6.4135036,3662.2,3662.1,0.041]
[1753367586854,5.73059909,3662.2,3662.1,0.041]
[1753367587051,5.98468451,3662.2,3662.1,0.041]
[1753367587275,6.15939909,3662.2,3662.1,0.041]
[1753367587781,5.73059909,3662.2,3662.1,0.041]
[1753367588942,0.7515,3662.9,3662.1,0.9597]
[1753367589255,0.25401774,3663.2,3662.1,0.9597]
[1753367589462,0.4288,3663.3,3662.1,0.9597]
[1753367589463,2.73046039,3662.4,3662.2,4.624]
[1753367589685,2.73015179,3662.8,3662.1,0.041]
[1753367589887,2.73059909,3662.2,3662.1,0.041]
[1753367590251,2.7305067,3662.4,3662.1,0.041]
[1753367590602,2.73055127,3662.3,3662.1,0.1778]
[1753367590794,2.73046153,3662.4,3662.1,0.1778]
[1753367591195,0.25428364,3662.7,3662.3,0.7599]
[1753367591491,0.25428364,3662.7,3662.2,0.9187]
[1753367591492,2.73057601,3662.3,3662.2,4.619]
[1753367591795,2.73046177,3662.4,3662.2,5.0846]
[1753367591964,2.73052453,3662.3,3662.1,0.1778]
[1753367592172,0.1368,3662.7,3662.2,0.9187]
[1753367592357,0.25471558,3662.6,3662.3,0.9187]
[1753367592556,0.25471558,3662.7,3662.4,0.9187]
[1753367592862,0.25471558,3662.7,3662.1,4.659]
[1753367592863,2.73013047,3662.9,3662.6,0.1368]
[1753367593056,0.25471558,3662.8,3662.6,0.1368]
[1753367593259,2.73013047,3662.9,3662.6,0.1368]
[1753367593260,0.25471558,3662.7,3662.6,0.1368]
[1753367594420,0.25471558,3662.9,3662.6,1.0555]
[1753367594619,2.98466473,3663.1,3662.7,0.9187]
[1753367594823,2.73007726,3662.9,3662.6,0.1368]
[1753367595122,2.73007726,3662.9,3662.8,4.608]
[1753367595433,3.12201995,3662.9,3662.8,4.608]
[1753367595930,0.25514269,3663.0,3662.8,4.608]
[1753367596082,2.73001274,3663.0,3662.8,4.608]
[1753367596287,0.25514269,3663.1,3662.8,4.608]
[1753367596534,2.73006612,3663.0,3662.8,4.608]
[1753367596687,0.25514269,3663.1,3662.8,4.608]
[1753367596885,2.72999845,3663.1,3662.8,4.608]
[1753367597084,0.39194269,3663.2,3662.8,4.608]
[1753367597289,3.1368,3663.2,3662.8,5.0736]
[1753367597497,0.39194269,3663.2,3662.8,5.5267]
[1753367597797,0.6856862,3663.4,3662.9,0.94600077]
[1753367598140,0.6856862,3663.4,3662.8,4.608]
[1753367598141,0.002,3664.2,3663.0,5.5167]
[1753367598290,2.73113119,3664.2,3663.0,5.5167]
[1753367598493,2.73113119,3664.2,3663.4,2.72969246]
[1753367598826,0.002,3664.2,3663.7,2.72946733]
[1753367599025,0.002,3664.2,3663.8,4.596]
[1753367599225,0.002,3664.2,3663.8,5.0491]
[1753367599431,0.002,3664.2,3663.9,0.4531]
[1753367599658,0.002,3664.2,3664.0,0.7822]
[1753367599811,0.002,3664.2,3664.1,2.72918315]
[1753367600013,0.002,3664.2,3664.1,3.64788315]
[1753367600222,0.002,3664.2,3664.1,8.24088315]
[1753367600607,0.002,3664.2,3664.1,8.23988315]
[1753367600905,0.002,3664.2,3664.1,5.5107]
[1753367601098,0.002,3664.2,3664.1,3.19478315]
[1753367601297,0.002,3664.2,3664.1,0.8968]
[1753367601745,0.002,3664.2,3664.1,7.77567498]
[1753367601895,0.002,3664.2,3664.1,15.31998315]
[1753367602100,0.002,3664.2,3664.1,10.73198315]
[1753367602341,0.002,3664.2,3664.1,15.31698315]
[1753367603333,0.002,3664.2,3664.1,16.10618315]
[1753367603510,0.002,3664.2,3664.1,11.52118315]
[1753367603835,0.002,3664.2,3664.1,16.10218315]
[1753367604723,0.002,3664.2,3664.1,11.52118315]